fUSD/lending_fUSD_20260605
["ID","MTS","AMOUNT","RATE_DAILY","PERIOD"]
[424165285,1780623034000,-150.0,0.00012951,2]
[424165286,1780623034000,-168.974852,0.00012952,2]
[424165288,1780623034000,-168.974852,0.00012966,2]
[424165289,1780623034000,-217.43671141,0.00012966,2]
[424165287,1780623034000,-217.43671141,0.00012952,2]
[424165231,1780623034000,-217.43671141,0.00012778,2]
[424165275,1780623034000,-150.0,0.00012923,2]
[424165262,1780623034000,-168.974852,0.00012885,2]
[424165276,1780623034000,-168.974852,0.00012925,2]
[424165261,1780623034000,-217.43671141,0.00012872,2]
[424165290,1780623034000,-150.0,0.00012968,2]
[424165236,1780623034000,-217.43671141,0.00012792,2]
[424165237,1780623034000,-168.974852,0.00012805,2]
[424165234,1780623034000,-168.974852,0.00012792,2]
[424165238,1780623034000,-217.43671141,0.00012805,2]
[424165240,1780623034000,-150.0,0.00012806,2]
[424165241,1780623034000,-150.0,0.00012811,2]
[424165239,1780623034000,-150.0,0.00012806,2]
[424165242,1780623034000,-150.0,0.00012811,2]
[424165243,1780623034000,-168.974852,0.00012819,2]
[424165244,1780623034000,-217.43671141,0.00012819,2]
[424165246,1780623034000,-168.974852,0.00012832,2]
[424165247,1780623034000,-217.43671141,0.00012832,2]
[424165245,1780623034000,-150.0,0.00012822,2]
[424165235,1780623034000,-150.0,0.00012792,2]
[424165257,1780623034000,-217.43671141,0.00012859,2]
[424165249,1780623034000,-150.0,0.00012839,2]
[424165250,1780623034000,-150.0,0.00012839,2]
[424165251,1780623034000,-5445.17234777,0.00012845,2]
[424165253,1780623034000,-217.43671141,0.00012845,2]
[424165252,1780623034000,-168.974852,0.00012845,2]
[424165254,1780623034000,-150.0,0.00012849,2]
[424165259,1780623034000,-150.0,0.00012867,2]
[424165255,1780623034000,-150.0,0.00012849,2]
[424165248,1780623034000,-150.0,0.00012836,2]
[424165260,1780623034000,-168.974852,0.00012872,2]
[424165256,1780623034000,-168.974852,0.00012859,2]
[424165258,1780623034000,-150.0,0.00012867,2]
[424165307,1780623035000,-150.0,0.00013019,2]
[424165308,1780623035000,-168.974852,0.00013032,2]
[424165320,1780623035000,-150.0,0.00013062,2]
[424165309,1780623035000,-217.43671141,0.00013032,2]
[424165302,1780623035000,-150.0,0.00013008,2]
[424165312,1780623035000,-150.0,0.00013036,2]
[424165322,1780623035000,-150.0,0.00013064,2]
[424165314,1780623035000,-850.6628227,0.00013043,2]
[424165311,1780623035000,-150.0,0.00013036,2]
[424165315,1780623035000,-168.974852,0.00013046,2]
[424165319,1780623035000,-150.0,0.00013062,2]
[424165303,1780623035000,-255.0,0.00013011,2]
[424165313,1780623035000,-4594.50952507,0.00013043,2]
[424165310,1780623035000,-150.0,0.00013034,2]
[424165298,1780623035000,-168.974852,0.00012992,2]
[424165305,1780623035000,-217.43671141,0.00013019,2]
[424165304,1780623035000,-168.974852,0.00013019,2]
[424165299,1780623035000,-168.974852,0.00013006,2]
[424165300,1780623035000,-217.43671141,0.00013006,2]
[424165301,1780623035000,-150.0,0.00013008,2]
[424165296,1780623035000,-150.0,0.00012979,2]
[424165295,1780623035000,-150.0,0.00012979,2]
[424165294,1780623035000,-217.43671141,0.00012979,2]
[424165292,1780623035000,-150.0,0.00012977,2]
[424165291,1780623035000,-150.0,0.00012977,2]
[424165293,1780623035000,-168.974852,0.00012979,2]
[424165297,1780623035000,-217.43671141,0.00012992,2]
[424165306,1780623035000,-150.0,0.00013019,2]
[424165316,1780623035000,-217.43671141,0.00013046,2]
[424165323,1780623035000,-150.0,0.00013067,2]
[424165321,1780623035000,-150.0,0.00013064,2]
[424165317,1780623035000,-168.974852,0.00013059,2]
[424165350,1780623035000,-449.23253314,0.00013126,2]
[424165349,1780623035000,-1110.61079819,0.00013126,2]
[424165348,1780623035000,-2799.02384926,0.00013126,2]
[424165347,1780623035000,-808.11866524,0.00013126,2]
[424165345,1780623035000,-450.90288902,0.00013126,2]
[424165344,1780623035000,-491.3936886,0.00013126,2]
[424165343,1780623035000,-39164.93559794,0.00013126,2]
[424165342,1780623035000,-6021.6247188,0.00013126,2]
[424165341,1780623035000,-184.68843713,0.00013126,2]
[424165340,1780623035000,-32.74827428,0.00013126,2]
[424165338,1780623035000,-150.0,0.0001312,2]
[424165339,1780623035000,-168.974852,0.00013126,2]
[424165336,1780623035000,-217.43671141,0.00013113,2]
[424165346,1780623035000,-840.09766043,0.00013126,2]
[424165332,1780623035000,-150.0,0.00013101,2]
[424165318,1780623035000,-217.43671141,0.00013059,2]
[424165337,1780623035000,-150.0,0.0001312,2]
[424165324,1780623035000,-168.974852,0.00013072,2]
[424165326,1780623035000,-168.974852,0.00013086,2]
[424165328,1780623035000,-150.0,0.00013092,2]
[424165327,1780623035000,-217.43671141,0.00013086,2]
[424165325,1780623035000,-217.43671141,0.00013072,2]
[424165329,1780623035000,-150.0,0.00013092,2]
[424165333,1780623035000,-150.0,0.00013105,2]
[424165331,1780623035000,-217.43671141,0.00013099,2]
[424165330,1780623035000,-168.974852,0.00013099,2]
[424165335,1780623035000,-168.974852,0.00013113,2]
[424165334,1780623035000,-150.0,0.00013105,2]
[424165754,1780623051000,-156.9493861,0.00011532,2]
[424165785,1780623052000,-150.0,0.00013177,2]
[424165783,1780623052000,-150.0,0.00013167,2]
[424165784,1780623052000,-150.0,0.00013177,2]
[424165782,1780623052000,-217.43671141,0.00013166,2]
[424165780,1780623052000,-217.43671141,0.00013153,2]
[424165786,1780623052000,-168.974852,0.00013179,2]
[424165781,1780623052000,-168.974852,0.00013166,2]
[424165778,1780623052000,-150.0,0.00013148,2]
[424165787,1780623052000,-217.43671141,0.00013179,2]
[424165788,1780623052000,-150.0,0.0001319,2]
[424165799,1780623052000,-11189.39721504,0.00013226,2]
[424165794,1780623052000,-168.974852,0.00013206,2]
[424165792,1780623052000,-150.0,0.00013205,2]
[424165801,1780623052000,-1904964.83487245,0.00013226,2]
[424165798,1780623052000,-150.0,0.00013225,2]
[424165796,1780623052000,-168.974852,0.0001322,2]
[424165791,1780623052000,-217.43671141,0.00013193,2]
[424165793,1780623052000,-150.0,0.00013205,2]
[424165779,1780623052000,-168.974852,0.00013153,2]
[424165795,1780623052000,-217.43671141,0.00013206,2]
[424165790,1780623052000,-168.974852,0.00013193,2]
[424165789,1780623052000,-150.0,0.0001319,2]
[424165760,1780623052000,-6021.62471871,0.00013128,2]
[424165767,1780623052000,-6021.62471871,0.00013137,2]
[424165800,1780623052000,-5211.85928881,0.00013226,2]
[424165756,1780623052000,-9292.256264,0.00013126,2]
[424165761,1780623052000,-6021.62471871,0.0001313,2]
[424165757,1780623052000,-855.50184514,0.00013126,2]
[424165764,1780623052000,-199.71082135,0.00013133,2]
[424165759,1780623052000,-12290.09520232,0.00013126,2]
[424165762,1780623052000,-6021.62471871,0.00013131,2]
[424165758,1780623052000,-1599.494872,0.00013126,2]
[424165765,1780623052000,-6021.62471871,0.00013133,2]
[424165774,1780623052000,-6021.62471871,0.00013142,2]
[424165763,1780623052000,-153.1513452,0.00013133,2]
[424165771,1780623052000,-6021.62471871,0.0001314,2]
[424165768,1780623052000,-6021.62471871,0.00013138,2]
[424165769,1780623052000,-217.43671141,0.00013139,2]
[424165777,1780623052000,-150.0,0.00013148,2]
[424165773,1780623052000,-5445.17234777,0.00013142,2]
[424165776,1780623052000,-150.0,0.00013148,2]
[424165775,1780623052000,-150.0,0.00013148,2]
[424165770,1780623052000,-168.974852,0.00013139,2]
[424165772,1780623052000,-12572.6089,0.00013142,2]
[424165766,1780623052000,-6021.62471871,0.00013135,2]
[424165797,1780623052000,-217.43671141,0.0001322,2]
[424165755,1780623052000,-3133.45858382,0.00013126,2]
[424165813,1780623052000,-217.43671141,0.00013233,2]
[424165832,1780623052000,-500.0,0.00013698,2]
[424165827,1780623052000,-2000.0,0.00013289,2]
[424165836,1780623052000,-557.43442372,0.00013698,2]
[424165834,1780623052000,-500.0,0.00013698,2]
[424165837,1780623052000,-500.0,0.00013698,2]
[424165833,1780623052000,-500.0,0.00013698,2]
[424165831,1780623052000,-443.26218347,0.00013698,2]
[424165829,1780623052000,-500.0,0.00013698,2]
[424165835,1780623052000,-500.0,0.00013698,2]
[424165830,1780623052000,-500.0,0.00013698,2]
[424165840,1780623052000,-500.0,0.00013698,2]
[424165848,1780623052000,-500.0,0.00013698,2]
[424165838,1780623052000,-500.0,0.00013698,2]
[424165842,1780623052000,-500.0,0.00013698,2]
[424165841,1780623052000,-500.0,0.00013698,2]
[424165843,1780623052000,-500.0,0.00013698,2]
[424165844,1780623052000,-500.0,0.00013698,2]
[424165845,1780623052000,-500.0,0.00013698,2]
[424165847,1780623052000,-500.0,0.00013698,2]
[424165802,1780623052000,-318103.8798764,0.00013226,2]
[424165839,1780623052000,-500.0,0.00013698,2]
[424165828,1780623052000,-186.04151345,0.00013534,2]
[424165846,1780623052000,-500.0,0.00013698,2]
[424165826,1780623052000,-34487.47,0.00013285,2]
[424165822,1780623052000,-834.811559,0.00013242,2]
[424165812,1780623052000,-150.0,0.00013233,2]
[424165803,1780623052000,-150.00000001,0.00013233,2]
[424165808,1780623052000,-150.0,0.00013233,2]
[424165804,1780623052000,-150.0,0.00013233,2]
[424165807,1780623052000,-265.84083951,0.00013233,2]
[424165811,1780623052000,-157.87607813,0.00013233,2]
[424165805,1780623052000,-150.0,0.00013233,2]
[424165809,1780623052000,-168.974852,0.00013233,2]
[424165810,1780623052000,-150.0,0.00013233,2]
[424165806,1780623052000,-153.69963451,0.00013233,2]
[424165819,1780623052000,-151.0,0.00013242,2]
[424165818,1780623052000,-151.0,0.00013242,2]
[424165817,1780623052000,-151.0,0.00013242,2]
[424165816,1780623052000,-2500000.0,0.00013242,2]
[424165823,1780623052000,-834.811559,0.00013242,2]
[424165815,1780623052000,-1230091.70430053,0.00013242,2]
[424165814,1780623052000,-300.0,0.00013241,2]
[424165825,1780623052000,-834.811559,0.00013242,2]
[424165821,1780623052000,-151.0,0.00013242,2]
[424165824,1780623052000,-834.811559,0.00013242,2]
[424165820,1780623052000,-151.0,0.00013242,2]
[424165863,1780623053000,-166.66,0.00013973,2]
[424165873,1780623053000,-550.0,0.00014015,2]
[424165882,1780623053000,-200.0,0.00014089,2]
[424165870,1780623053000,-550.0,0.00014015,2]
[424165869,1780623053000,-550.0,0.00014015,2]
[424165871,1780623053000,-550.0,0.00014015,2]
[424165868,1780623053000,-1605.0,0.00014015,2]
[424165872,1780623053000,-550.0,0.00014015,2]
[424165881,1780623053000,-200.0,0.00014089,2]
[424165877,1780623053000,-313.0,0.00014015,2]
[424165880,1780623053000,-200.0,0.00014089,2]
[424165878,1780623053000,-200.0,0.00014089,2]
[424165885,1780623053000,-255.0,0.00014089,2]
[424165888,1780623053000,-433.0,0.0001418,2]
[424165866,1780623053000,-39367.56471291,0.0001399,2]
[424165884,1780623053000,-200.0,0.00014089,2]
[424165879,1780623053000,-200.0,0.00014089,2]
[424165867,1780623053000,-250.0,0.00014,2]
[424165855,1780623053000,-500.0,0.00013698,2]
[424165875,1780623053000,-550.0,0.00014015,2]
[424165887,1780623053000,-1000.0,0.00014168,2]
[424165849,1780623053000,-500.0,0.00013698,2]
[424165851,1780623053000,-500.0,0.00013698,2]
[424165852,1780623053000,-500.0,0.00013698,2]
[424165850,1780623053000,-500.0,0.00013698,2]
[424165853,1780623053000,-500.0,0.00013698,2]
[424165854,1780623053000,-500.0,0.00013698,2]
[424165865,1780623053000,-300.0,0.00013989,2]
[424165857,1780623053000,-500.0,0.00013698,2]
[424165858,1780623053000,-500.0,0.00013698,2]
[424165860,1780623053000,-166.66,0.00013699,2]
[424165859,1780623053000,-200.0,0.00013699,2]
[424165862,1780623053000,-1500.0,0.00013906,2]
[424165861,1780623053000,-166.66,0.00013836,2]
[424165874,1780623053000,-550.0,0.00014015,2]
[424165864,1780623053000,-246.47,0.00013986,2]
[424165856,1780623053000,-500.0,0.00013698,2]
[424165883,1780623053000,-200.0,0.00014089,2]
[424165900,1780623053000,-152.594755,0.00015,2]
[424165876,1780623053000,-550.0,0.00014015,2]
[424165909,1780623053000,-834.811559,0.00015,2]
[424165912,1780623053000,-834.811559,0.00015,2]
[424165911,1780623053000,-834.811559,0.00015,2]
[424165924,1780623053000,-39712.9679574,0.0001519,2]
[424165914,1780623053000,-6267.5113,0.00015041,2]
[424165915,1780623053000,-300.0,0.00015049,2]
[424165925,1780623053000,-921638.23873094,0.0001519,2]
[424165916,1780623053000,-233353.63987759,0.0001505,2]
[424165917,1780623053000,-615.0,0.00015068,2]
[424165920,1780623053000,-693.0918697,0.00015182,2]
[424165918,1780623053000,-900.0,0.00015068,2]
[424165923,1780623053000,-666.0,0.00015189,2]
[424165922,1780623053000,-46025.7360718,0.00015189,2]
[424165921,1780623053000,-219.35009724,0.00015188,2]
[424165919,1780623053000,-177.0,0.00015131,2]
[424165886,1780623053000,-166.66,0.0001411,2]
[424165926,1780623053000,-2446.37758397,0.0001519,2]
[424165903,1780623053000,-46879.59525042,0.00015,2]
[424165907,1780623053000,-151.0,0.00015,2]
[424165913,1780623053000,-1613.0535,0.00015002,2]
[424165906,1780623053000,-151.0,0.00015,2]
[424165890,1780623053000,-166.66,0.00014384,2]
[424165908,1780623053000,-151.0,0.00015,2]
[424165889,1780623053000,-166.66,0.00014247,2]
[424165891,1780623053000,-1555.5,0.00014454,2]
[424165892,1780623053000,-150.99,0.00014504,2]
[424165893,1780623053000,-728.95,0.00014504,2]
[424165895,1780623053000,-2000.0,0.00014836,2]
[424165896,1780623053000,-2000.0,0.0001495,2]
[424165894,1780623053000,-9999.99,0.00014504,2]
[424165910,1780623053000,-834.811559,0.00015,2]
[424165897,1780623053000,-216.49,0.00014984,2]
[424165899,1780623053000,-949039.79775095,0.00015,2]
[424165901,1780623053000,-1200.0,0.00015,2]
[424165904,1780623053000,-151.0,0.00015,2]
[424165905,1780623053000,-151.0,0.00015,2]
[424165898,1780623053000,-300.0,0.00014999,2]
[424165902,1780623053000,-500.0,0.00015,2]
[424165956,1780623067000,-500.0,0.00015196,2]
[424165957,1780623067000,-500.0,0.00015196,2]
[424165950,1780623067000,-500.0,0.00015196,2]
[424165948,1780623067000,-303.9747599,0.00015196,2]
[424165952,1780623067000,-500.0,0.00015196,2]
[424165960,1780623067000,-500.0,0.00015196,2]
[424165955,1780623067000,-500.0,0.00015196,2]
[424165951,1780623067000,-500.0,0.00015196,2]
[424165954,1780623067000,-500.0,0.00015196,2]
[424165967,1780623067000,-300.0,0.00015196,2]
[424165953,1780623067000,-500.0,0.00015196,2]
[424165961,1780623067000,-500.0,0.00015196,2]
[424165963,1780623067000,-500.0,0.00015196,2]
[424165966,1780623067000,-206.79701479,0.00015196,2]
[424165965,1780623067000,-500.0,0.00015196,2]
[424165964,1780623067000,-500.0,0.00015196,2]
[424165969,1780623067000,-500.0,0.00015196,2]
[424165959,1780623067000,-500.0,0.00015196,2]
[424165958,1780623067000,-500.0,0.00015196,2]
[424165949,1780623067000,-500.0,0.00015196,2]
[424165931,1780623067000,-151.0,0.0001519,2]
[424165941,1780623067000,-151.0,0.00015194,2]
[424165962,1780623067000,-500.0,0.00015196,2]
[424165927,1780623067000,-377.44756176,0.0001519,2]
[424165928,1780623067000,-1034596.97321923,0.0001519,2]
[424165929,1780623067000,-151.0,0.0001519,2]
[424165930,1780623067000,-151.0,0.0001519,2]
[424165933,1780623067000,-186.521462,0.0001519,2]
[424165932,1780623067000,-151.0,0.0001519,2]
[424165934,1780623067000,-151.0,0.0001519,2]
[424165936,1780623067000,-834.811559,0.0001519,2]
[424165937,1780623067000,-834.811559,0.0001519,2]
[424165935,1780623067000,-151.0,0.0001519,2]
[424165945,1780623067000,-500.0,0.00015196,2]
[424165944,1780623067000,-500.0,0.00015196,2]
[424165946,1780623067000,-500.0,0.00015196,2]
[424165938,1780623067000,-834.811559,0.0001519,2]
[424165942,1780623067000,-666.0,0.00015195,2]
[424165947,1780623067000,-500.0,0.00015196,2]
[424165939,1780623067000,-834.811559,0.0001519,2]
[424165940,1780623067000,-151.0,0.00015194,2]
[424165943,1780623067000,-500.0,0.00015196,2]
[424165974,1780623067000,-500.0,0.00015196,2]
[424166008,1780623067000,-2000.0,0.00015367,2]
[424165970,1780623067000,-500.0,0.00015196,2]
[424165995,1780623067000,-449.0,0.00015297,2]
[424165993,1780623067000,-453.0,0.00015297,2]
[424165998,1780623067000,-444.0,0.00015297,2]
[424165992,1780623067000,-153.0,0.00015297,2]
[424165996,1780623067000,-151.0,0.00015297,2]
[424165997,1780623067000,-446.0,0.00015297,2]
[424166002,1780623067000,-528.6,0.00015337,2]
[424166009,1780623067000,-2000.0,0.00015367,2]
[424165994,1780623067000,-452.0,0.00015297,2]
[424166011,1780623067000,-150.0,0.00015367,2]
[424166001,1780623067000,-268.63,0.00015297,2]
[424166004,1780623067000,-675.79510841,0.00015366,2]
[424166007,1780623067000,-2000.0,0.00015367,2]
[424166005,1780623067000,-2000.0,0.00015367,2]
[424166006,1780623067000,-2000.0,0.00015367,2]
[424166013,1780623067000,-2000.0,0.00015367,2]
[424166012,1780623067000,-2000.0,0.00015367,2]
[424165968,1780623067000,-500.0,0.00015196,2]
[424166003,1780623067000,-1274.25,0.00015348,2]
[424165999,1780623067000,-452.0,0.00015297,2]
[424166010,1780623067000,-1864.95,0.00015367,2]
[424165991,1780623067000,-454.0,0.00015297,2]
[424165971,1780623067000,-500.0,0.00015196,2]
[424166000,1780623067000,-1000.0,0.00015297,2]
[424165972,1780623067000,-500.0,0.00015196,2]
[424165973,1780623067000,-500.0,0.00015196,2]
[424165976,1780623067000,-500.0,0.00015196,2]
[424165975,1780623067000,-500.0,0.00015196,2]
[424165986,1780623067000,-500.0,0.00015196,2]
[424165985,1780623067000,-500.0,0.00015196,2]
[424165978,1780623067000,-500.0,0.00015196,2]
[424165979,1780623067000,-500.0,0.00015196,2]
[424165977,1780623067000,-500.0,0.00015196,2]
[424165980,1780623067000,-500.0,0.00015196,2]
[424165989,1780623067000,-500.28,0.000152,2]
[424165988,1780623067000,-156.7841719,0.00015197,2]
[424165982,1780623067000,-500.0,0.00015196,2]
[424165983,1780623067000,-353.6872308,0.00015196,2]
[424165990,1780623067000,-443.0,0.00015297,2]
[424165984,1780623067000,-500.0,0.00015196,2]
[424165987,1780623067000,-500.0,0.00015196,2]
[424165981,1780623067000,-500.0,0.00015196,2]
[424166041,1780623068000,-300.0,0.00016,2]
[424166038,1780623068000,-500.0,0.00015837,2]
[424166049,1780623068000,-538.68867808,0.000162,2]
[424166047,1780623068000,-17128.12783429,0.0001611,15]
[424166043,1780623068000,-160.0,0.00016,8]
[424166040,1780623068000,-154.0,0.00015952,2]
[424166042,1780623068000,-778.97913638,0.00016,2]
[424166048,1780623068000,-9999.99,0.00016116,2]
[424166044,1780623068000,-538.68867808,0.00016,2]
[424166045,1780623068000,-1734.62772924,0.00016098,2]
[424166057,1780623068000,-151.0,0.00016453,2]
[424166050,1780623068000,-500.0,0.00016247,2]
[424166052,1780623068000,-4072.3,0.00016438,2]
[424166062,1780623068000,-500.0,0.00016455,2]
[424166054,1780623068000,-195.04165564,0.00016438,2]
[424166061,1780623068000,-500.0,0.00016455,2]
[424166060,1780623068000,-151.0,0.00016453,2]
[424166055,1780623068000,-900.0,0.00016438,2]
[424166053,1780623068000,-174.97043361,0.00016438,2]
[424166039,1780623068000,-615.0,0.0001589,2]
[424166046,1780623068000,-538.68867808,0.000161,2]
[424166036,1780623068000,-186.094154,0.00015788,2]
[424166021,1780623068000,-150.0,0.00015462,2]
[424166031,1780623068000,-860.1,0.00015496,2]
[424166051,1780623068000,-419.87707949,0.00016355,2]
[424166016,1780623068000,-1003.74,0.00015367,2]
[424166018,1780623068000,-160.0,0.00015454,2]
[424166014,1780623068000,-1006.23,0.00015367,2]
[424166017,1780623068000,-250.0,0.00015404,2]
[424166020,1780623068000,-150.0,0.00015462,2]
[424166019,1780623068000,-736.0,0.00015458,2]
[424166015,1780623068000,-2000.0,0.00015367,2]
[424166022,1780623068000,-277.75388502,0.00015462,2]
[424166023,1780623068000,-500.0,0.00015479,2]
[424166024,1780623068000,-860.1,0.00015488,2]
[424166025,1780623068000,-860.1,0.0001549,2]
[424166026,1780623068000,-860.1,0.00015492,2]
[424166035,1780623068000,-614.0,0.00015781,2]
[424166029,1780623068000,-860.1,0.00015494,2]
[424166034,1780623068000,-161.45189402,0.00015598,3]
[424166037,1780623068000,-272.796375,0.00015788,2]
[424166030,1780623068000,-860.06,0.00015496,2]
[424166032,1780623068000,-1672.7364795,0.0001555,2]
[424166028,1780623068000,-860.1,0.00015494,2]
[424166027,1780623068000,-860.1,0.00015492,2]
[424166033,1780623068000,-151.0,0.00015584,2]
[424166058,1780623068000,-151.0,0.00016453,2]
[424166094,1780623068000,-238.45269864,0.00017558,2]
[424166056,1780623068000,-151.0,0.00016438,2]
[424166090,1780623068000,-354.85,0.0001738,2]
[424166089,1780623068000,-198.26,0.0001738,2]
[424166091,1780623068000,-194.43835952,0.0001738,2]
[424166088,1780623068000,-233.32761998,0.00017354,2]
[424166096,1780623068000,-419.37,0.00017701,2]
[424166098,1780623068000,-500.0,0.00017744,2]
[424166095,1780623068000,-793.92263506,0.000177,2]
[424166106,1780623068000,-1803.84088917,0.000181,2]
[424166093,1780623068000,-229.99003246,0.00017535,2]
[424166092,1780623068000,-209.58099603,0.00017499,2]
[424166099,1780623068000,-500.0,0.00017808,2]
[424166108,1780623068000,-2005.9555727,0.0001829,2]
[424166109,1780623068000,-671.576668,0.00018294,2]
[424166100,1780623068000,-500.0,0.00017808,2]
[424166101,1780623068000,-1240.73704456,0.0001789,2]
[424166103,1780623068000,-350.0,0.00018,2]
[424166104,1780623068000,-102887.06436542,0.00018,2]
[424166105,1780623068000,-1208.78474622,0.00018,2]
[424166102,1780623068000,-186.04151345,0.00017917,2]
[424166107,1780623068000,-2000.0,0.00018273,2]
[424166059,1780623068000,-151.0,0.00016453,2]
[424166087,1780623068000,-500.0,0.00017232,2]
[424166082,1780623068000,-182.95816127,0.00016813,2]
[424166097,1780623068000,-1934.38338736,0.00017742,2]
[424166080,1780623068000,-487.0,0.00016767,2]
[424166079,1780623068000,-168.25,0.00016712,2]
[424166063,1780623068000,-500.0,0.00016455,2]
[424166064,1780623068000,-500.0,0.00016455,2]
[424166074,1780623068000,-1000.0,0.000165,2]
[424166066,1780623068000,-500.0,0.00016455,2]
[424166065,1780623068000,-500.0,0.00016455,2]
[424166068,1780623068000,-500.0,0.00016455,2]
[424166067,1780623068000,-500.0,0.00016455,2]
[424166071,1780623068000,-500.0,0.00016455,2]
[424166073,1780623068000,-6622.41867616,0.000165,2]
[424166069,1780623068000,-500.0,0.00016455,2]
[424166072,1780623068000,-500.0,0.00016455,2]
[424166070,1780623068000,-500.0,0.00016455,2]
[424166075,1780623068000,-2000.0,0.00016611,2]
[424166085,1780623068000,-589.87,0.00016981,2]
[424166084,1780623068000,-388.53,0.00016981,2]
[424166086,1780623068000,-1865.36488656,0.00017194,2]
[424166078,1780623068000,-220.0,0.00016712,2]
[424166083,1780623068000,-1252.0,0.00016854,2]
[424166081,1780623068000,-500.28,0.000168,2]
[424166077,1780623068000,-1798.80895522,0.00016646,2]
[424166076,1780623068000,-500.0,0.0001663,2]
[424166158,1780623069000,-500.0,0.0001833,2]
[424166148,1780623069000,-500.0,0.0001833,2]
[424166147,1780623069000,-500.0,0.0001833,2]
[424166146,1780623069000,-500.0,0.0001833,2]
[424166145,1780623069000,-500.0,0.0001833,2]
[424166143,1780623069000,-500.0,0.0001833,2]
[424166141,1780623069000,-500.0,0.0001833,2]
[424166144,1780623069000,-500.0,0.0001833,2]
[424166138,1780623069000,-500.0,0.0001833,2]
[424166150,1780623069000,-500.0,0.0001833,2]
[424166142,1780623069000,-500.0,0.0001833,2]
[424166149,1780623069000,-500.0,0.0001833,2]
[424166169,1780623069000,-500.0,0.0001833,2]
[424166152,1780623069000,-500.0,0.0001833,2]
[424166156,1780623069000,-500.0,0.0001833,2]
[424166154,1780623069000,-500.0,0.0001833,2]
[424166153,1780623069000,-500.0,0.0001833,2]
[424166151,1780623069000,-500.0,0.0001833,2]
[424166155,1780623069000,-500.0,0.0001833,2]
[424166159,1780623069000,-500.0,0.0001833,2]
[424166161,1780623069000,-500.0,0.0001833,2]
[424166162,1780623069000,-500.0,0.0001833,2]
[424166163,1780623069000,-500.0,0.0001833,2]
[424166140,1780623069000,-500.0,0.0001833,2]
[424166157,1780623069000,-151.0,0.0001833,2]
[424166137,1780623069000,-500.0,0.0001833,2]
[424166112,1780623069000,-500.0,0.00018298,2]
[424166136,1780623069000,-500.0,0.0001833,2]
[424166110,1780623069000,-151.0,0.00018296,2]
[424166111,1780623069000,-500.0,0.00018298,2]
[424166117,1780623069000,-185.66586559,0.00018329,2]
[424166160,1780623069000,-500.0,0.0001833,2]
[424166114,1780623069000,-163.390817,0.00018327,2]
[424166113,1780623069000,-500.0,0.00018298,2]
[424166115,1780623069000,-500.0,0.00018329,2]
[424166116,1780623069000,-429.12820006,0.00018329,2]
[424166120,1780623069000,-500.0,0.0001833,2]
[424166119,1780623069000,-500.0,0.0001833,2]
[424166121,1780623069000,-500.0,0.0001833,2]
[424166123,1780623069000,-500.0,0.0001833,2]
[424166122,1780623069000,-500.0,0.0001833,2]
[424166124,1780623069000,-500.0,0.0001833,2]
[424166128,1780623069000,-500.0,0.0001833,2]
[424166129,1780623069000,-500.0,0.0001833,2]
[424166131,1780623069000,-500.0,0.0001833,2]
[424166132,1780623069000,-500.0,0.0001833,2]